[Event "NJSK 2026 Meisjes A"]
[Site "Helmond, Netherlands"]
[Date "2026.04.25"]
[Round "1.3"]
[White "Feng, Elysia"]
[Black "Kulikova, Polina"]
[Result "1-0"]
[TimeControl "90min/40moves + 30min + 30sec/move"]
[WhiteTitle "-"]
[BlackTitle "-"]
[WhiteFideId "1074334"]
[BlackFideId "1085921"]
[WhiteElo "1912"]
[BlackElo "1766"]

1. e4 {[%clk 01:30:57]} {[%emt 00:00:03]} c6 {[%clk 01:30:59]} {[%emt
00:00:02]} 2. d4 {[%clk 01:31:18]} {[%emt 00:00:08]} d5 {[%clk 01:31:24]}
{[%emt 00:00:05]} 3. Nc3 {[%clk 01:31:42]} {[%emt 00:00:06]} dxe4 {[%clk
01:31:48]} {[%emt 00:00:07]} 4. Nxe4 {[%clk 01:32:00]} {[%emt 00:00:12]} Nd7
{[%clk 01:32:08]} {[%emt 00:00:10]} 5. Bc4 {[%clk 01:17:58]} {[%emt 00:14:31]}
Ndf6 {[%clk 01:26:51]} {[%emt 00:05:48]} 6. Ng5 {[%clk 01:12:55]} {[%emt
00:05:33]} e6 {[%clk 01:22:53]} {[%emt 00:04:28]} 7. Ne2 {[%clk 01:08:05]}
{[%emt 00:05:19]} Nd5 {[%clk 01:13:57]} {[%emt 00:09:26]} 8. O-O {[%clk
01:07:57]} {[%emt 00:00:38]} Ngf6 {[%clk 01:13:47]} {[%emt 00:00:41]} 9. c3
{[%clk 01:01:27]} {[%emt 00:06:59]} Bd6 {[%clk 01:11:11]} {[%emt 00:03:05]} 10.
Qc2 {[%clk 00:56:47]} {[%emt 00:05:11]} Qc7 {[%clk 01:07:56]} {[%emt 00:03:45]}
11. g3 {[%clk 00:44:50]} {[%emt 00:12:26]} h6 {[%clk 00:55:17]} {[%emt
00:13:09]} 12. Nf3 {[%clk 00:44:54]} {[%emt 00:00:27]} O-O {[%clk 00:50:38]}
{[%emt 00:05:10]} 13. Bd2 {[%clk 00:41:45]} {[%emt 00:03:37]} Re8 {[%clk
00:40:47]} {[%emt 00:10:21]} 14. Rfe1 {[%clk 00:40:12]} {[%emt 00:02:03]} b6
{[%clk 00:36:41]} {[%emt 00:04:37]} 15. a3 {[%clk 00:37:32]} {[%emt 00:03:10]}
Bb7 {[%clk 00:35:18]} {[%emt 00:01:53]} 16. Bd3 {[%clk 00:36:11]} {[%emt
00:01:50]} Kh8 {[%clk 00:32:03]} {[%emt 00:03:45]} 17. c4 {[%clk 00:27:23]}
{[%emt 00:09:19]} Ne7 {[%clk 00:32:11]} {[%emt 00:00:21]} 18. c5 {[%clk
00:24:05]} {[%emt 00:03:48]} bxc5 {[%clk 00:32:17]} {[%emt 00:00:24]} 19. dxc5
{[%clk 00:24:28]} {[%emt 00:00:07]} Be5 {[%clk 00:32:15]} {[%emt 00:00:33]} 20.
Nc1 {[%clk 00:22:10]} {[%emt 00:02:47]} Nd7 {[%clk 00:30:34]} {[%emt 00:02:12]}
21. Nxe5 {[%clk 00:22:29]} {[%emt 00:00:10]} Nxe5 {[%clk 00:30:43]} {[%emt
00:00:21]} 22. Be4 {[%clk 00:18:30]} {[%emt 00:04:29]} Nd5 {[%clk 00:25:48]}
{[%emt 00:05:26]} 23. b4 {[%clk 00:17:33]} {[%emt 00:01:26]} Ng4 {[%clk
00:19:17]} {[%emt 00:07:00]} 24. Nd3 {[%clk 00:15:29]} {[%emt 00:02:36]} Ngf6
{[%clk 00:18:17]} {[%emt 00:01:30]} 25. Bf3 {[%clk 00:14:52]} {[%emt 00:01:07]}
Rad8 {[%clk 00:17:40]} {[%emt 00:01:06]} 26. Ne5 {[%clk 00:14:34]} {[%emt
00:00:49]} Ba6 {[%clk 00:15:13]} {[%emt 00:02:56]} 27. a4 {[%clk 00:13:02]}
{[%emt 00:02:03]} Rb8 {[%clk 00:15:12]} {[%emt 00:00:32]} 28. Rab1 {[%clk
00:10:43]} {[%emt 00:02:48]} Kg8 {[%clk 00:14:22]} {[%emt 00:01:19]} 29. Rb3
{[%clk 00:09:15]} {[%emt 00:01:58]} Rec8 {[%clk 00:06:44]} {[%emt 00:08:08]} 30.
Qb2 {[%clk 00:06:41]} {[%emt 00:03:04]} Bb7 {[%clk 00:05:48]} {[%emt 00:01:26]}
31. Nc4 {[%clk 00:05:48]} {[%emt 00:01:23]} a6 {[%clk 00:04:24]} {[%emt
00:01:55]} 32. Nd6 {[%clk 00:03:56]} {[%emt 00:02:22]} Rd8 {[%clk 00:04:20]}
{[%emt 00:00:34]} 33. Ra1 {[%clk 00:03:23]} {[%emt 00:01:03]} Bc8 {[%clk
00:02:09]} {[%emt 00:02:41]} 34. Nc4 {[%clk 00:02:09]} {[%emt 00:01:44]} Rf8
{[%clk 00:02:24]} {[%emt 00:00:15]} 35. Rc1 {[%clk 00:01:09]} {[%emt 00:01:30]}
Bd7 {[%clk 00:02:03]} {[%emt 00:00:51]} 36. Nd6 {[%clk 00:01:11]} {[%emt
00:00:29]} Rfd8 {[%clk 00:01:09]} {[%emt 00:01:24]} 37. h4 {[%clk 00:01:28]}
{[%emt 00:00:13]} Ra8 {[%clk 00:00:55]} {[%emt 00:00:44]} 38. g4 {[%clk
00:00:59]} {[%emt 00:00:58]} Ne8 {[%clk 00:00:55]} {[%emt 00:00:30]} 39. Qe5
{[%clk 00:00:43]} {[%emt 00:00:46]} f6 {[%clk 00:00:47]} {[%emt 00:00:39]} 40.
Qg3 {[%clk 00:01:07]} {[%emt 00:00:06]} Nxd6 41. cxd6 {[%clk 00:28:28]} Qb6
{[%clk 00:19:26]} {[%emt 00:11:56]} 42. g5 {[%clk 00:20:02]} {[%emt 00:08:56]}
hxg5 {[%clk 00:12:58]} {[%emt 00:06:59]} 43. hxg5 {[%clk 00:20:16]} {[%emt
00:00:16]} f5 {[%clk 00:05:29]} {[%emt 00:07:58]} 44. Qe5 {[%clk 00:19:51]}
{[%emt 00:00:54]} Re8 {[%clk 00:04:40]} {[%emt 00:01:20]} 45. Rc4 {[%clk
00:18:23]} {[%emt 00:01:59]} a5 {[%clk 00:01:53]} {[%emt 00:03:17]} 46. Bc1
{[%clk 00:17:44]} {[%emt 00:01:08]} Rf8 {[%clk 00:00:58]} {[%emt 00:01:26]} 47.
Bb2 {[%clk 00:17:59]} {[%emt 00:00:16]} Rf7 {[%clk 00:01:23]} {[%emt 00:00:03]}
48. Bh5 {[%clk 00:18:08]} {[%emt 00:00:21]} Raf8 {[%clk 00:01:34]} {[%emt
00:00:19]} 49. Rh4 {[%clk 00:17:18]} {[%emt 00:01:19]} Rf6 {[%clk 00:00:54]}
{[%emt 00:01:10]} 50. gxf6 {[%clk 00:17:27]} {[%emt 00:00:22]} Rxf6 {[%clk
00:01:11]} {[%emt 00:00:12]} 51. Qg3 {[%clk 00:16:55]} {[%emt 00:01:02]} f4
{[%clk 00:00:42]} {[%emt 00:00:58]} 52. Qg5 {[%clk 00:16:44]} {[%emt 00:00:42]}
axb4 {[%clk 00:00:37]} {[%emt 00:00:36]} 53. Bxf6 {[%clk 00:16:57]} {[%emt
00:00:16]} Nxf6 {[%clk 00:00:54]} {[%emt 00:00:13]} 54. Rxf4 {[%clk 00:16:24]}
{[%emt 00:01:03]} Qd8 {[%clk 00:00:41]} {[%emt 00:00:44]} 55. Rg3 {[%clk
00:16:27]} {[%emt 00:00:26]} Qf8 {[%clk 00:00:00]} {[%emt 00:00:42]} 1-0

[Event "NJSK 2026 Meisjes A"]
[Site "Helmond, Netherlands"]
[Date "2026.04.25"]
[Round "1.4"]
[White "Westerhof, Fleur"]
[Black "Hagen, Carlijn"]
[Result "0-1"]
[TimeControl "90min/40moves + 30min + 30sec/move"]
[WhiteTitle "-"]
[BlackTitle "-"]
[WhiteFideId "1080369"]
[BlackFideId "1091190"]
[WhiteElo "1968"]
[BlackElo "1861"]

1. e4 {[%clk 01:30:58]} {[%emt 00:00:02]} e5 {[%clk 01:30:52]} {[%emt
00:00:08]} 2. Nf3 {[%clk 01:31:20]} {[%emt 00:00:08]} Nc6 {[%clk 01:31:08]}
{[%emt 00:00:14]} 3. Bc4 {[%clk 01:31:40]} {[%emt 00:00:10]} Bc5 {[%clk
01:31:23]} {[%emt 00:00:16]} 4. c3 {[%clk 01:32:01]} {[%emt 00:00:09]} Nf6
{[%clk 01:31:38]} {[%emt 00:00:14]} 5. d3 {[%clk 01:32:19]} {[%emt 00:00:14]}
O-O {[%clk 01:31:04]} {[%emt 00:01:02]} 6. O-O {[%clk 01:31:43]} {[%emt
00:01:06]} d5 {[%clk 01:23:06]} {[%emt 00:08:28]} 7. exd5 {[%clk 01:26:56]}
{[%emt 00:05:18]} Nxd5 {[%clk 01:23:14]} {[%emt 00:00:22]} 8. b4 {[%clk
01:26:02]} {[%emt 00:01:24]} Be7 {[%clk 01:17:45]} {[%emt 00:05:59]} 9. Qb3
{[%clk 01:11:00]} {[%emt 00:15:32]} Nb6 {[%clk 01:03:21]} {[%emt 00:14:53]} 10.
Bb5 {[%clk 01:08:06]} {[%emt 00:03:24]} Bf6 {[%clk 00:57:32]} {[%emt 00:06:19]}
11. Re1 {[%clk 01:04:37]} {[%emt 00:03:59]} Re8 {[%clk 00:53:02]} {[%emt
00:05:00]} 12. Nbd2 {[%clk 00:57:49]} {[%emt 00:07:18]} Bd7 {[%clk 00:43:24]}
{[%emt 00:10:08]} 13. Ne4 {[%clk 00:49:39]} {[%emt 00:08:41]} a6 {[%clk
00:41:15]} {[%emt 00:02:39]} 14. Bxc6 {[%clk 00:41:02]} {[%emt 00:09:07]} Bxc6
{[%clk 00:41:30]} {[%emt 00:00:14]} 15. c4 {[%clk 00:35:56]} {[%emt 00:05:37]}
h6 {[%clk 00:28:46]} {[%emt 00:13:13]} 16. Bb2 {[%clk 00:32:51]} {[%emt
00:03:36]} Na4 {[%clk 00:22:18]} {[%emt 00:06:57]} 17. Nxf6+ {[%clk 00:29:08]}
{[%emt 00:04:14]} gxf6 {[%clk 00:18:46]} {[%emt 00:04:01]} 18. Bc1 {[%clk
00:27:53]} {[%emt 00:01:46]} Kh7 {[%clk 00:13:13]} {[%emt 00:06:03]} 19. Qc2
{[%clk 00:25:31]} {[%emt 00:02:51]} Bxf3 {[%clk 00:08:31]} {[%emt 00:05:12]} 20.
gxf3 {[%clk 00:25:54]} {[%emt 00:00:07]} Rg8+ {[%clk 00:08:04]} {[%emt
00:00:57]} 21. Kf1 {[%clk 00:19:46]} {[%emt 00:06:38]} Qd7 {[%clk 00:07:23]}
{[%emt 00:01:12]} 22. Be3 {[%clk 00:16:19]} {[%emt 00:03:57]} Rae8 {[%clk
00:05:17]} {[%emt 00:02:36]} 23. Ke2 {[%clk 00:14:34]} {[%emt 00:02:14]} f5
{[%clk 00:04:56]} {[%emt 00:00:52]} 24. Rg1 {[%clk 00:11:37]} {[%emt 00:03:26]}
f4 {[%clk 00:04:37]} {[%emt 00:00:48]} 25. Bd2 {[%clk 00:11:54]} {[%emt
00:00:13]} Nb6 {[%clk 00:03:41]} {[%emt 00:01:26]} 26. Rxg8 {[%clk 00:07:16]}
{[%emt 00:05:08]} Kxg8 {[%clk 00:02:59]} {[%emt 00:01:12]} 27. Rg1+ {[%clk
00:07:18]} {[%emt 00:00:29]} Kh8 {[%clk 00:02:53]} {[%emt 00:00:36]} 28. Bc3
{[%clk 00:06:12]} {[%emt 00:01:35]} f6 {[%clk 00:02:58]} {[%emt 00:00:25]} 29.
Qb1 {[%clk 00:04:33]} {[%emt 00:02:10]} Nc8 {[%clk 00:02:33]} {[%emt 00:00:55]}
30. Qf1 {[%clk 00:04:31]} {[%emt 00:00:31]} Rd8 {[%clk 00:01:46]} {[%emt
00:01:17]} 31. Kd2 {[%clk 00:02:29]} {[%emt 00:02:33]} Ne7 {[%clk 00:01:39]}
{[%emt 00:00:37]} 32. Rg4 {[%clk 00:01:50]} {[%emt 00:01:09]} Nf5 {[%emt
00:00:30]} 33. Qe2 {[%clk 00:01:27]} {[%emt 00:00:51]} b5 {[%clk 00:01:19]}
{[%emt 00:00:51]} 34. Qe4 {[%clk 00:00:57]} {[%emt 00:00:59]} Qe6 {[%clk
00:01:01]} {[%emt 00:00:48]} 35. Kc1 {[%clk 00:00:53]} {[%emt 00:00:35]} bxc4
{[%clk 00:00:53]} {[%emt 00:00:38]} 36. Qxc4 {[%clk 00:00:59]} {[%emt
00:00:24]} Qxc4 {[%clk 00:01:01]} {[%emt 00:00:23]} 37. dxc4 {[%clk 00:01:24]}
{[%emt 00:00:04]} Rd3 {[%clk 00:01:08]} {[%emt 00:00:23]} 38. Kc2 {[%clk
00:01:29]} {[%emt 00:00:24]} Rxf3 {[%clk 00:01:25]} {[%emt 00:00:13]} 39. Rg6
{[%clk 00:00:45]} {[%emt 00:01:13]} Rxf2+ {[%clk 00:01:31]} {[%emt 00:00:25]}
40. Kb3 {[%clk 00:00:43]} {[%emt 00:00:33]} Rf3 {[%clk 00:00:48]} {[%emt
00:01:13]} 41. Rxf6 {[%clk 00:29:45]} {[%emt 00:01:35]} Nd6 {[%clk 00:30:21]}
{[%emt 00:00:51]} 42. Rxd6 {[%clk 00:26:39]} {[%emt 00:03:36]} cxd6 {[%clk
00:30:38]} {[%emt 00:00:13]} 43. b5 {[%clk 00:26:44]} {[%emt 00:00:24]} axb5
{[%clk 00:28:46]} {[%emt 00:02:22]} 44. cxb5 {[%clk 00:27:06]} {[%emt
00:00:08]} Rf1 {[%clk 00:28:21]} {[%emt 00:00:56]} 45. b6 {[%clk 00:26:12]}
{[%emt 00:01:23]} Rg1 {[%clk 00:26:21]} {[%emt 00:02:29]} 46. a4 {[%clk
00:25:25]} {[%emt 00:01:19]} f3 {[%clk 00:23:34]} {[%emt 00:03:17]} 47. b7
{[%clk 00:24:23]} {[%emt 00:01:31]} Rg8 {[%clk 00:23:52]} {[%emt 00:00:11]} 48.
Be1 {[%clk 00:24:50]} {[%emt 00:00:04]} Rb8 {[%clk 00:24:04]} {[%emt 00:00:18]}
49. Bf2 {[%clk 00:23:41]} {[%emt 00:01:39]} Rxb7+ {[%clk 00:24:23]} {[%emt
00:00:12]} 50. Kc3 {[%clk 00:24:06]} {[%emt 00:00:05]} d5 {[%clk 00:24:15]}
{[%emt 00:00:37]} 51. a5 {[%clk 00:23:27]} {[%emt 00:01:10]} Rb5 {[%clk
00:23:35]} {[%emt 00:01:09]} 52. a6 {[%clk 00:23:39]} {[%emt 00:00:19]} Ra5
{[%clk 00:23:51]} {[%emt 00:00:13]} 53. a7 {[%clk 00:24:02]} {[%emt 00:00:07]}
d4+ {[%clk 00:24:01]} {[%emt 00:00:20]} 0-1

[Event "NJSK 2026 Meisjes A"]
[Site "Helmond, Netherlands"]
[Date "2026.04.26"]
[Round "2.1"]
[White "Yildirim, Azra"]
[Black "Hagen, Carlijn"]
[Result "1-0"]
[TimeControl "90min/40moves + 30min + 30sec/move"]
[WhiteTitle "-"]
[BlackTitle "-"]
[WhiteFideId "1085670"]
[BlackFideId "1091190"]
[WhiteElo "1560"]
[BlackElo "1861"]

1. e4 {[%clk 01:30:58]} {[%emt 00:00:02]} e5 {[%clk 01:30:52]} {[%emt
00:00:08]} 2. Nf3 {[%clk 01:31:19]} {[%emt 00:00:08]} Nc6 {[%clk 01:31:10]}
{[%emt 00:00:12]} 3. Bc4 {[%clk 01:29:47]} {[%emt 00:02:03]} Bc5 {[%clk
01:31:28]} {[%emt 00:00:11]} 4. c3 {[%clk 01:29:15]} {[%emt 00:01:02]} Nf6
{[%clk 01:31:26]} {[%emt 00:00:32]} 5. d3 {[%clk 01:24:42]} {[%emt 00:05:05]}
O-O {[%clk 01:29:33]} {[%emt 00:02:21]} 6. Bg5 {[%clk 01:21:53]} {[%emt
00:03:19]} h6 {[%clk 01:24:48]} {[%emt 00:05:14]} 7. Bh4 {[%clk 01:22:09]}
{[%emt 00:00:15]} d6 {[%clk 01:24:33]} {[%emt 00:00:44]} 8. h3 {[%clk
01:20:29]} {[%emt 00:02:10]} Re8 {[%clk 01:19:17]} {[%emt 00:05:46]} 9. O-O
{[%clk 01:12:03]} {[%emt 00:08:57]} a6 {[%clk 01:13:06]} {[%emt 00:06:41]} 10.
b4 {[%clk 01:04:01]} {[%emt 00:08:32]} Ba7 {[%clk 01:12:44]} {[%emt 00:00:51]}
11. a4 {[%clk 01:01:52]} {[%emt 00:02:40]} Be6 {[%clk 00:57:19]} {[%emt
00:15:55]} 12. Nbd2 {[%clk 00:59:22]} {[%emt 00:03:00]} g5 {[%clk 00:46:28]}
{[%emt 00:11:21]} 13. Bg3 {[%clk 00:53:15]} {[%emt 00:06:37]} Ne7 {[%clk
00:42:07]} {[%emt 00:04:50]} 14. Bxe6 {[%clk 00:50:03]} {[%emt 00:03:43]} fxe6
{[%clk 00:42:27]} {[%emt 00:00:09]} 15. d4 {[%clk 00:49:56]} {[%emt 00:00:38]}
exd4 {[%clk 00:38:15]} {[%emt 00:04:42]} 16. Nxd4 {[%clk 00:49:14]} {[%emt
00:01:12]} e5 {[%clk 00:37:07]} {[%emt 00:01:37]} 17. Qf3 {[%clk 00:31:48]}
{[%emt 00:17:56]} Ng6 {[%clk 00:28:48]} {[%emt 00:08:49]} 18. Nf5 {[%clk
00:28:38]} {[%emt 00:03:40]} Kh7 {[%clk 00:28:35]} {[%emt 00:00:44]} 19. Nc4
{[%clk 00:28:24]} {[%emt 00:00:45]} Rf8 {[%clk 00:25:15]} {[%emt 00:03:49]} 20.
Nce3 {[%clk 00:27:06]} {[%emt 00:01:47]} Qc8 {[%clk 00:19:56]} {[%emt
00:05:49]} 21. h4 {[%clk 00:20:20]} {[%emt 00:07:17]} Bxe3 {[%clk 00:18:49]}
{[%emt 00:01:37]} 22. Qxe3 {[%clk 00:19:42]} {[%emt 00:01:09]} Nxe4 {[%clk
00:17:37]} {[%emt 00:01:41]} 23. Qxe4 {[%clk 00:16:06]} {[%emt 00:04:06]} Rxf5
{[%clk 00:16:17]} {[%emt 00:01:49]} 24. h5 {[%clk 00:14:57]} {[%emt 00:01:40]}
Ne7 {[%clk 00:14:49]} {[%emt 00:01:58]} 25. Bxe5 {[%clk 00:14:02]} {[%emt
00:01:25]} d5 {[%clk 00:12:25]} {[%emt 00:02:54]} 26. Qd3 {[%clk 00:11:24]}
{[%emt 00:03:07]} Kg8 {[%clk 00:12:19]} {[%emt 00:00:37]} 27. Rae1 {[%clk
00:10:25]} {[%emt 00:01:29]} Qd7 {[%clk 00:11:13]} {[%emt 00:01:36]} 28. Bd4
{[%clk 00:08:50]} {[%emt 00:02:04]} Nc6 {[%clk 00:09:26]} {[%emt 00:02:17]} 29.
g4 {[%clk 00:08:29]} {[%emt 00:00:51]} Nxd4 {[%clk 00:07:52]} {[%emt 00:02:05]}
30. gxf5 {[%clk 00:08:17]} {[%emt 00:00:42]} Nxf5 {[%clk 00:08:02]} {[%emt
00:00:20]} 31. Re5 {[%clk 00:06:54]} {[%emt 00:01:54]} Ne7 {[%clk 00:07:10]}
{[%emt 00:01:21]} 32. Rfe1 {[%clk 00:05:27]} {[%emt 00:01:58]} Re8 {[%clk
00:05:58]} {[%emt 00:01:42]} 33. Re6 {[%clk 00:03:38]} {[%emt 00:02:18]} c6
{[%clk 00:05:09]} {[%emt 00:01:19]} 34. Qd4 {[%clk 00:02:46]} {[%emt 00:01:22]}
Nf5 {[%clk 00:02:57]} {[%emt 00:02:41]} 35. Rxe8+ {[%clk 00:02:21]} {[%emt
00:00:56]} Kf7 {[%clk 00:03:17]} {[%emt 00:00:09]} 36. Qh8 {[%clk 00:02:16]}
{[%emt 00:00:35]} 1-0

[Event "NJSK 2026 Meisjes A"]
[Site "Helmond, Netherlands"]
[Date "2026.04.26"]
[Round "2.2"]
[White "Kulikova, Polina"]
[Black "Westerhof, Fleur"]
[Result "1/2-1/2"]
[TimeControl "90min/40moves + 30min + 30sec/move"]
[WhiteTitle "-"]
[BlackTitle "-"]
[WhiteFideId "1085921"]
[BlackFideId "1080369"]
[WhiteElo "1766"]
[BlackElo "1968"]

1. d4 {[%clk 01:30:58]} {[%emt 00:00:03]} d5 {[%clk 01:30:53]} {[%emt
00:00:06]} 2. c4 {[%clk 01:31:23]} {[%emt 00:00:05]} e6 {[%clk 01:31:15]}
{[%emt 00:00:07]} 3. cxd5 {[%clk 01:31:44]} {[%emt 00:00:10]} exd5 {[%clk
01:31:36]} {[%emt 00:00:09]} 4. Nc3 {[%clk 01:32:08]} {[%emt 00:00:06]} Nf6
{[%clk 01:31:55]} {[%emt 00:00:10]} 5. Bg5 {[%clk 01:32:32]} {[%emt 00:00:06]}
Be6 {[%clk 01:32:16]} {[%emt 00:00:09]} 6. e3 {[%clk 01:32:53]} {[%emt
00:00:09]} Nbd7 {[%clk 01:32:18]} {[%emt 00:00:28]} 7. Bd3 {[%clk 01:28:36]}
{[%emt 00:04:47]} c6 {[%clk 01:32:30]} {[%emt 00:00:19]} 8. Nge2 {[%clk
01:27:49]} {[%emt 00:01:17]} h6 {[%clk 01:32:50]} {[%emt 00:00:10]} 9. Bh4
{[%clk 01:28:03]} {[%emt 00:00:15]} g5 {[%clk 01:32:45]} {[%emt 00:00:35]} 10.
Bg3 {[%clk 01:28:19]} {[%emt 00:00:15]} Nh5 {[%clk 01:32:48]} {[%emt 00:00:26]}
11. Qc2 {[%clk 01:24:33]} {[%emt 00:04:16]} Nxg3 {[%clk 01:32:22]} {[%emt
00:00:56]} 12. Nxg3 {[%clk 01:21:11]} {[%emt 00:03:52]} h5 {[%clk 01:28:21]}
{[%emt 00:04:31]} 13. h3 {[%clk 01:11:56]} {[%emt 00:09:44]} h4 {[%clk
01:22:59]} {[%emt 00:05:53]} 14. Nf1 {[%clk 01:07:52]} {[%emt 00:04:33]} Bg7
{[%clk 01:17:57]} {[%emt 00:05:34]} 15. Nd2 {[%clk 01:01:46]} {[%emt 00:06:36]}
Qe7 {[%clk 01:12:53]} {[%emt 00:05:34]} 16. Nb3 {[%clk 00:56:04]} {[%emt
00:06:12]} O-O {[%clk 01:06:37]} {[%emt 00:06:45]} 17. O-O-O {[%clk 00:46:50]}
{[%emt 00:09:44]} b5 {[%clk 01:03:31]} {[%emt 00:03:37]} 18. Ne2 {[%clk
00:40:53]} {[%emt 00:06:25]} a5 {[%clk 00:57:32]} {[%emt 00:06:31]} 19. g3
{[%clk 00:37:01]} {[%emt 00:04:22]} a4 {[%clk 00:45:45]} {[%emt 00:12:17]} 20.
Nc5 {[%clk 00:35:56]} {[%emt 00:01:35]} Nxc5 {[%clk 00:41:53]} {[%emt
00:04:22]} 21. dxc5 {[%clk 00:29:52]} {[%emt 00:06:33]} b4 {[%clk 00:40:45]}
{[%emt 00:01:39]} 22. Nd4 {[%clk 00:14:40]} {[%emt 00:15:41]} Bd7 {[%clk
00:38:21]} {[%emt 00:02:53]} 23. gxh4 {[%clk 00:09:36]} {[%emt 00:05:34]} Ra5
{[%clk 00:35:51]} {[%emt 00:03:01]} 24. Kd2 {[%clk 00:06:17]} {[%emt 00:03:49]}
Rfa8 {[%clk 00:31:13]} {[%emt 00:05:08]} 25. Rc1 {[%clk 00:05:38]} {[%emt
00:01:09]} Bxd4 {[%clk 00:28:12]} {[%emt 00:03:31]} 26. exd4 {[%clk 00:05:28]}
{[%emt 00:00:40]} Qf6 {[%clk 00:28:26]} {[%emt 00:00:16]} 27. Rcg1 {[%clk
00:02:35]} {[%emt 00:03:23]} Qf4+ {[%clk 00:26:53]} {[%emt 00:02:03]} 28. Kd1
{[%clk 00:02:14]} {[%emt 00:00:51]} Qxh4 {[%clk 00:25:23]} {[%emt 00:02:01]} 29.
Qd2 {[%clk 00:01:43]} {[%emt 00:01:01]} f6 {[%clk 00:22:28]} {[%emt 00:03:25]}
30. f4 {[%clk 00:01:40]} {[%emt 00:00:32]} a3 {[%clk 00:19:27]} {[%emt
00:03:32]} 31. b3 {[%clk 00:02:01]} {[%emt 00:00:08]} 1/2-1/2

[Event "NJSK 2026 Meisjes A"]
[Site "Helmond, Netherlands"]
[Date "2026.04.26"]
[Round "2.3"]
[White "Gergin, Isafara"]
[Black "Feng, Elysia"]
[Result "1/2-1/2"]
[TimeControl "90min/40moves + 30min + 30sec/move"]
[WhiteTitle "-"]
[BlackTitle "-"]
[WhiteFideId "1082167"]
[BlackFideId "1074334"]
[WhiteElo "1915"]
[BlackElo "1912"]

1. e4 {[%clk 01:30:57]} e5 {[%clk 01:30:54]} {[%emt 00:00:05]} 2. Nf3 {[%clk
01:31:23]} {[%emt 00:00:06]} Nc6 {[%clk 01:31:18]} {[%emt 00:00:05]} 3. Bc4
{[%clk 01:31:47]} {[%emt 00:00:06]} Bc5 {[%clk 01:31:22]} {[%emt 00:00:26]} 4.
d3 {[%clk 01:32:01]} {[%emt 00:00:16]} Nf6 {[%clk 01:30:32]} {[%emt 00:01:20]}
5. O-O {[%clk 01:32:11]} {[%emt 00:00:21]} O-O {[%clk 01:30:31]} {[%emt
00:00:30]} 6. Re1 {[%clk 01:31:51]} {[%emt 00:00:51]} d6 {[%clk 01:26:31]}
{[%emt 00:04:29]} 7. c3 {[%clk 01:28:22]} {[%emt 00:03:59]} Bb6 {[%clk
01:24:14]} {[%emt 00:02:47]} 8. h3 {[%clk 01:24:54]} {[%emt 00:03:57]} Ne7
{[%clk 01:20:40]} {[%emt 00:04:05]} 9. d4 {[%clk 01:15:55]} {[%emt 00:09:29]}
exd4 {[%clk 01:19:55]} {[%emt 00:01:15]} 10. cxd4 {[%clk 01:14:07]} {[%emt
00:02:18]} d5 {[%clk 01:15:26]} {[%emt 00:04:59]} 11. exd5 {[%clk 01:06:03]}
{[%emt 00:08:33]} Nexd5 {[%clk 01:08:45]} {[%emt 00:07:12]} 12. Bg5 {[%clk
00:59:19]} {[%emt 00:07:14]} Qd6 {[%clk 01:06:19]} {[%emt 00:02:56]} 13. Nc3
{[%clk 00:55:17]} {[%emt 00:04:32]} c6 {[%clk 00:55:44]} {[%emt 00:11:05]} 14.
Ne5 {[%clk 00:45:15]} {[%emt 00:10:32]} Bf5 {[%clk 00:42:00]} {[%emt 00:14:14]}
15. Qf3 {[%clk 00:28:02]} {[%emt 00:17:43]} Bg6 {[%clk 00:29:36]} {[%emt
00:12:53]} 16. Nxg6 {[%clk 00:23:16]} {[%emt 00:05:17]} hxg6 {[%clk 00:27:45]}
{[%emt 00:02:21]} 17. Nxd5 {[%clk 00:17:11]} {[%emt 00:06:36]} Nxd5 {[%clk
00:25:04]} {[%emt 00:03:10]} 18. Bxd5 {[%clk 00:15:27]} {[%emt 00:10:30]} Qxd5
{[%clk 00:25:27]} {[%emt 00:00:07]} 19. Qxd5 {[%clk 00:15:20]} {[%emt
00:00:37]} 1/2-1/2